lending/lending_fUSD_20240206
["ID","MTS","AMOUNT","RATE_DAILY","PERIOD"]
[313373340,1707240639997,-237.28975725,0.00038,2]
[313373342,1707240640007,-237.28975725,0.00038,2]
[313373345,1707240640022,-237.28975725,0.00038,2]
[313373347,1707240640034,-237.28975725,0.00038,2]
[313373350,1707240640049,-237.28975725,0.00038,2]
[313373352,1707240640062,-237.28975725,0.00038,2]
[313373354,1707240640073,-237.28975725,0.00038,2]
[313373357,1707240640086,-237.28975725,0.00038,2]
[313373359,1707240640099,-237.28975725,0.00038,2]
[313373362,1707240640111,-237.28975725,0.00038,2]
[313373364,1707240640125,-237.28975725,0.00038,2]
[313373367,1707240640139,-237.28975725,0.00038,2]
[313373369,1707240640153,-416.28,0.00038147,2]
[313373372,1707240640164,-150.0,0.0003819,2]
[313373374,1707240640174,-4692.88,0.00038252,2]
[313373376,1707240640185,-150.0,0.00038356,2]
[313373378,1707240640196,-300.0,0.00038356,7]
[313373381,1707240640209,-450.0,0.00038356,12]
[313373383,1707240640220,-600.0,0.00038356,17]
[313373385,1707240640232,-225.51523263,0.00038356,22]
[313373387,1707240640244,-150.04,0.00038356,2]
[313373390,1707240640254,-476.72497982,0.00038386,8]
[313373392,1707240640265,-2391.8435666,0.00038631,6]
[313373394,1707240640276,-6906.59677804,0.00038631,6]
[313373396,1707240640287,-687.08149416,0.00038631,6]
[313373398,1707240640298,-159.72878846,0.00038631,5]
[313373401,1707240640308,-331.37870851,0.00038631,6]
[313373403,1707240640319,-413.41102937,0.00038631,6]
[313373405,1707240640330,-308.41032142,0.00038631,6]
[313373407,1707240640341,-152.81386044,0.00038745,2]
[313373410,1707240640354,-150.0,0.00038784,2]
[313373413,1707240640364,-21438.18330583,0.000388,4]
[313373415,1707240640376,-252.43450429,0.0003888,2]
[313373417,1707240640386,-252.43450421,0.0003888,2]
[313373420,1707240640398,-252.43450421,0.0003888,2]
[313373422,1707240640409,-252.43450421,0.0003888,2]
[313373424,1707240640421,-252.43450421,0.0003888,2]
[313373427,1707240640433,-252.43450421,0.0003888,2]
[313373429,1707240640444,-282.99585299,0.0003898,2]
[313373431,1707240640456,-1433.61374358,0.00039,2]
[313373433,1707240640467,-220.46095402,0.00039,5]
[313373435,1707240640478,-700.0,0.00039,3]
[313373438,1707240640489,-8142.0,0.00039014,2]
[313373440,1707240640501,-511.15824913,0.00039053,2]
[313373442,1707240640512,-832.1,0.00039173,2]
[313373444,1707240640523,-740.33,0.0003926,2]
[313373447,1707240640534,-150.0,0.00039379,2]
[313373449,1707240640545,-4692.88,0.0003957,2]
[313373451,1707240640556,-150.04,0.00039726,2]
[313373453,1707240640567,-150.0,0.00039973,2]
[313373455,1707240640578,-200.0,0.00039978,7]
[313373458,1707240640590,-2938.09,0.0003999,10]
[313373460,1707240640600,-1800.0,0.0004,41]
[313373462,1707240640611,-155.0,0.0004,2]
[313373464,1707240640622,-239.07037631,0.0004,2]
[313373467,1707240640633,-3430.78962876,0.0004,7]
[313373469,1707240640644,-3762.50408095,0.0004,4]
[313373471,1707240640655,-4801.85553049,0.0004,4]
[313373473,1707240640666,-5000.0,0.0004,35]
[313373475,1707240640678,-22291.99764734,0.0004,4]
[313373478,1707240640690,-255.0,0.0004,12]
[313373480,1707240640701,-1000.0,0.0004,2]
[313373482,1707240640712,-255.0,0.0004,12]
[313373484,1707240640723,-255.0,0.0004,12]
[313373487,1707240640734,-255.0,0.0004,12]
[313373489,1707240640745,-300.0,0.0004,30]
[313373491,1707240640757,-255.0,0.0004,12]
[313373493,1707240640768,-255.0,0.0004,12]
[313373496,1707240640779,-416.28,0.00040411,2]
[313373498,1707240640790,-150.0,0.00040567,2]
[313373500,1707240640801,-740.33,0.00040733,2]
[313373502,1707240640816,-4692.88,0.00040888,2]
[313373505,1707240640827,-100000.0,0.00041,21]
[313373507,1707240640838,-750.0,0.00041,3]
[313373509,1707240640851,-300.0,0.00041,30]
[313373511,1707240640863,-1023.61844267,0.00041095,2]
[313373513,1707240640874,-4000.0,0.00041096,30]
[313373516,1707240640886,-152.54,0.00041096,2]
[313373518,1707240640898,-150.04,0.00041096,2]
[313373520,1707240640910,-213.36,0.000411,7]
[313373522,1707240640920,-150.0,0.00041162,2]
[313373541,1707240641082,-252.43450421,0.00041306,3]
[313373542,1707240641092,-511.15824913,0.00041361,5]
[313373544,1707240641103,-205.0,0.00041644,27]
[313373545,1707240641113,-150.0,0.00041756,2]
[313373546,1707240641123,-854.70138422,0.00041897,15]
[313373547,1707240641132,-488.92621759,0.00041898,4]
[313373548,1707240641142,-15697.53868058,0.000419,4]
[313373549,1707240641151,-100000.0,0.00042,22]
[313373550,1707240641160,-2235.09666655,0.00042,4]
[313373551,1707240641169,-1381.39715128,0.00042,30]
[313373552,1707240641181,-300.0,0.00042,30]
[313373553,1707240641191,-8142.0,0.00042014,2]
[313373554,1707240641200,-740.33,0.00042205,2]
[313373555,1707240641209,-476.72497982,0.00042257,10]
[313373556,1707240641220,-2191.466805,0.000423,41]
[313373557,1707240641228,-943.52359611,0.00042314,14]
[313373558,1707240641238,-150.0,0.0004235,2]
[313373559,1707240641247,-150.04,0.00042466,2]
[313373560,1707240641256,-416.28,0.00042674,2]
[313373561,1707240641265,-1000.0,0.000427,2]
[313373562,1707240641275,-1500.0,0.000428,41]
[313373563,1707240641285,-1000.0,0.000428,9]
[313373564,1707240641294,-4386.59409582,0.0004299,16]
[313373565,1707240641306,-100000.0,0.00043,23]
[313373566,1707240641315,-1215.26600012,0.00043,30]
[313373567,1707240641325,-800.0,0.00043,3]
[313373568,1707240641334,-300.0,0.00043,30]
[313373569,1707240641343,-832.1,0.0004309,2]
[313373570,1707240641353,-150.0,0.00043185,4]
[313373571,1707240641362,-150.0,0.00043185,4]
[313373572,1707240641372,-3584.76767516,0.00043186,16]
[313373573,1707240641381,-114863.99534016,0.00043186,18]
[313373574,1707240641390,-8568.08588702,0.00043186,16]
[313373575,1707240641400,-4525.43958115,0.00043186,16]
[313373576,1707240641409,-279.11898163,0.00043186,15]
[313373577,1707240641418,-1500.0,0.000433,41]
[313373578,1707240641428,-21509.19969265,0.00043314,32]
[313373579,1707240641438,-3452.59317612,0.00043314,30]
[313373580,1707240641447,-12275.67125685,0.00043314,30]
[313373581,1707240641458,-15288.55808387,0.00043314,30]
[313373582,1707240641467,-200.0,0.00043314,30]
[313373584,1707240641477,-200.0,0.00043314,30]
[313373585,1707240641487,-200.0,0.00043314,30]
[313373586,1707240641498,-496.65209327,0.00043314,30]
[313373587,1707240641509,-500.0,0.00043314,120]
[313373588,1707240641519,-35180.63920345,0.00043314,120]
[313373589,1707240641529,-155592.089999,0.00043314,30]
[313373590,1707240641538,-30142.25807681,0.00043314,30]
[313373591,1707240641547,-6600.0,0.00043314,120]
[313373592,1707240641557,-3151.8535,0.00043314,7]
[313373593,1707240641566,-200.0,0.00043314,30]
[313373594,1707240641575,-199.0,0.00043314,30]
[313373595,1707240641585,-399.981942,0.00043314,30]
[313373596,1707240641595,-150.0,0.00043314,30]
[313373597,1707240641605,-1905.57256604,0.00043314,2]
[313373598,1707240641614,-1941.745718,0.00043314,30]
[313373599,1707240641624,-3450.28968947,0.00043435,30]
[313373600,1707240641634,-511.15824913,0.00043668,5]
[313373601,1707240641644,-740.33,0.00043677,2]
[313373602,1707240641655,-8000.0,0.000438,2]
[313373603,1707240641665,-666.0,0.00043835,2]
[313373604,1707240641675,-250.0,0.00043835,2]
[313373605,1707240641684,-915.2,0.00043836,15]
[313373606,1707240641694,-150.04,0.00043836,2]
[313373607,1707240641703,-772.56,0.00043874,2]
[313373608,1707240641712,-100000.0,0.00044,24]
[313373609,1707240641722,-300.0,0.00044,30]
[313373610,1707240641731,-4000.0,0.00044,2]
[313373611,1707240641741,-252.43450421,0.00044374,6]
[313373612,1707240641751,-500.0,0.00044383,7]
[313373613,1707240641761,-750.0,0.00044931,7]
[313373614,1707240641771,-416.28,0.00044938,2]
[313373615,1707240641780,-100000.0,0.00045,35]
[313373616,1707240641791,-168.87910162,0.00045,7]
[313373617,1707240641801,-270.7278475,0.00045,4]
[313373618,1707240641815,-253.4340856,0.00045,60]
[313373619,1707240641825,-850.0,0.00045,3]
[313373620,1707240641834,-300.0,0.00045,30]
[313373621,1707240641843,-8142.0,0.00045014,2]
[313373622,1707240641854,-740.33,0.00045149,2]
[313373623,1707240641864,-8000.0,0.000452,2]
[313373624,1707240641873,-150.04,0.00045205,2]
[313373625,1707240641883,-205.0,0.00045316,34]
[313373626,1707240641893,-1000.0,0.000455,2]
[313373627,1707240641903,-200.0,0.00045699,20]
[313373628,1707240641912,-666.0,0.0004589,2]
[313373629,1707240641922,-500.0,0.000459,14]
[313373630,1707240641932,-511.15824913,0.00045976,5]
[313373631,1707240641941,-100000.0,0.00046,36]
[313373632,1707240641951,-500.0,0.00046,2]
[313373633,1707240641960,-300.0,0.00046,30]
[313373634,1707240641970,-476.72497982,0.00046129,12]
[313373635,1707240641979,-500.0,0.00046575,3]
[313373636,1707240641989,-150.04,0.00046575,2]
[313373637,1707240641998,-8000.0,0.000466,2]
[313373638,1707240642007,-152.81386044,0.00046667,32]
[313373639,1707240642017,-179.34103,0.00046821,30]
[313373640,1707240642026,-4957.26,0.00046849,120]
[313373641,1707240642036,-500.0,0.000469,14]
[313373642,1707240642045,-100000.0,0.00047,37]
[313373643,1707240642054,-900.0,0.00047,3]
[313373644,1707240642063,-832.1,0.00047008,2]
[313373645,1707240642072,-416.28,0.00047202,2]
[313373646,1707240642081,-252.43450421,0.00047441,9]
[313373647,1707240642090,-915.2,0.00047572,15]
[313373648,1707240642100,-500.0,0.000479,14]
[313373649,1707240642109,-5904.0,0.000479,2]
[313373650,1707240642118,-666.0,0.00047945,2]
[313373651,1707240642127,-500.0,0.00047945,3]
[313373652,1707240642136,-150.04,0.00047945,2]
[313373653,1707240642145,-200.0,0.00047987,12]
[313373654,1707240642154,-200.0,0.00047987,10]
[313373655,1707240642163,-100000.0,0.00048,38]
[313373656,1707240642173,-8142.0,0.00048014,2]
[313373657,1707240642182,-1000.0,0.000482,2]
[313373658,1707240642191,-511.15824913,0.00048284,5]
[313373659,1707240642201,-411.0,0.0004856,2]
[313373660,1707240642210,-1375.0,0.000487,117]
[313373661,1707240642219,-154.23080742,0.00048774,30]
[313373662,1707240642228,-154.23080742,0.00048864,30]
[313373663,1707240642237,-154.23080742,0.00048866,30]
[313373664,1707240642247,-500.0,0.000489,14]
[313373665,1707240642256,-205.0,0.00048987,40]
[313373666,1707240642265,-200.0,0.00048987,14]
[313373667,1707240642274,-100000.0,0.00049,39]
[313373668,1707240642284,-950.0,0.00049,3]
[313373669,1707240642293,-154.23080742,0.00049142,30]
[313373670,1707240642302,-500.0,0.00049227,5]
[313373671,1707240642311,-500.0,0.00049236,5]
[313373672,1707240642320,-500.0,0.00049245,5]
[313373673,1707240642329,-150.0,0.00049248,9]
[313373674,1707240642338,-150.0,0.00049248,9]
[313373675,1707240642347,-167.01321768,0.00049249,30]
[313373676,1707240642356,-500.0,0.00049253,5]
[313373677,1707240642365,-500.0,0.00049262,5]
[313373678,1707240642374,-500.0,0.00049271,5]
[313373679,1707240642384,-500.0,0.0004928,5]
[313373680,1707240642393,-500.0,0.00049289,5]
[313373681,1707240642402,-500.0,0.00049297,5]
[313373682,1707240642411,-5904.41068757,0.000493,5]
[313373683,1707240642420,-500.0,0.00049306,5]
[313373684,1707240642430,-1517.89527047,0.00049315,7]
[313373685,1707240642439,-191.42858949,0.00049315,7]
[313373686,1707240642449,-555.43853989,0.00049315,31]
[313373687,1707240642458,-539.65962839,0.00049315,31]
[313373688,1707240642466,-500.0,0.00049315,31]
[313373689,1707240642475,-527.4145319,0.00049315,31]
[313373690,1707240642485,-500.0,0.00049315,31]
[313373691,1707240642494,-546.26265627,0.00049315,31]
[313373692,1707240642504,-1000.0,0.00049315,2]
[313373693,1707240642513,-500.0,0.00049315,9]
[313373694,1707240642523,-501.14304042,0.00049315,31]
[313373695,1707240642533,-500.0,0.00049315,31]
[313373696,1707240642542,-500.0,0.00049315,31]
[313373697,1707240642551,-500.0,0.00049315,2]
[313373698,1707240642569,-527.71991655,0.00049315,31]
[313373699,1707240642580,-500.0,0.00049315,31]
[313373700,1707240642590,-563.42680454,0.00049315,31]
[313373701,1707240642599,-545.68027777,0.00049315,31]
[313373702,1707240642608,-532.64676543,0.00049315,31]
[313373703,1707240642618,-181.56793518,0.00049315,31]
[313373704,1707240642627,-610.61721391,0.00049315,31]
[313373705,1707240642637,-500.0,0.00049315,31]
[313373706,1707240642647,-500.0,0.00049315,30]
[313373708,1707240642656,-502.57702621,0.00049315,31]
[313373710,1707240642666,-500.0,0.00049315,31]
[313373712,1707240642675,-500.0,0.00049315,120]
[313373714,1707240642686,-511.24793484,0.00049315,31]
[313373715,1707240642695,-500.0,0.00049315,31]
[313373716,1707240642705,-503.17788029,0.00049315,31]
[313373717,1707240642714,-527.42129958,0.00049315,31]
[313373718,1707240642724,-509.12350992,0.00049315,31]
[313373719,1707240642733,-164.33559095,0.00049315,31]
[313373720,1707240642743,-556.54723452,0.00049315,31]
[313373722,1707240642752,-520.25690183,0.00049315,31]
[313373723,1707240642761,-540.37667965,0.00049315,31]
[313373726,1707240642771,-500.0,0.00049315,31]
[313373727,1707240642781,-567.75008006,0.00049315,31]
[313373729,1707240642790,-500.0,0.00049315,31]
[313373732,1707240642800,-557.80937341,0.00049315,31]
[313373734,1707240642812,-510.27096071,0.00049315,31]
[313373736,1707240642822,-520.48264046,0.00049315,31]
[313373738,1707240642832,-563.17260998,0.00049315,31]
[313373740,1707240642841,-500.0,0.00049315,31]
[313373742,1707240642851,-515.02602877,0.00049315,31]
[313373745,1707240642862,-500.0,0.00049315,31]
[313373747,1707240642871,-528.53005174,0.00049315,31]
[313373749,1707240642881,-500.0,0.00049315,7]
[313373751,1707240642890,-500.0,0.00049315,31]
[313373753,1707240642901,-500.68001021,0.00049315,31]
[313373755,1707240642911,-500.0,0.00049315,31]
[313373757,1707240642920,-557.56279029,0.00049315,31]
[313373758,1707240642929,-500.0,0.00049315,31]
[313373760,1707240642938,-327.56134791,0.00049315,31]
[313373762,1707240642947,-500.0,0.00049315,31]
[313373764,1707240642957,-520.66851291,0.00049315,31]
[313373767,1707240642966,-503.02545503,0.00049315,7]
[313373768,1707240642976,-550.97858192,0.00049315,31]
[313373770,1707240642985,-500.0,0.00049315,31]
[313373772,1707240642996,-553.7429732,0.00049315,31]
[313373774,1707240643006,-500.0,0.00049315,31]
[313373776,1707240643015,-527.36524937,0.00049315,31]
[313373778,1707240643024,-215.07,0.00049315,31]
[313373780,1707240643034,-382.52815629,0.00049315,31]
[313373782,1707240643043,-643.16912468,0.00049315,31]
[313373784,1707240643052,-500.0,0.00049315,31]
[313373786,1707240643062,-500.0,0.00049315,31]
[313373788,1707240643072,-500.0,0.00049315,31]
[313373790,1707240643082,-500.0,0.00049315,31]
[313373793,1707240643091,-567.04252409,0.00049315,31]
[313373795,1707240643100,-500.0,0.00049315,31]
[313373796,1707240643110,-518.85580097,0.00049315,31]
[313373798,1707240643119,-584.43551787,0.00049315,31]
[313373800,1707240643128,-558.94100162,0.00049315,31]
[313373802,1707240643138,-500.0,0.00049315,31]
[313373804,1707240643147,-323.32753346,0.00049315,31]
[313373806,1707240643157,-500.74345583,0.00049315,31]
[313373808,1707240643166,-542.65026495,0.00049315,31]
[313373810,1707240643175,-621.25570239,0.00049315,31]
[313373812,1707240643186,-513.85536542,0.00049315,31]
[313373814,1707240643195,-500.53961142,0.00049315,31]
[313373816,1707240643205,-621.83068289,0.00049315,31]
[313373818,1707240643214,-572.21331298,0.00049315,31]
[313373820,1707240643224,-600.87760013,0.00049315,31]
[313373821,1707240643233,-577.03460366,0.00049315,31]
[313373822,1707240643243,-602.49950469,0.00049315,31]
[313373823,1707240643252,-557.07740277,0.00049315,31]
[313373824,1707240643261,-519.98481479,0.00049315,31]
[313373825,1707240643270,-500.69779459,0.00049315,31]
[313373826,1707240643280,-534.05166163,0.00049315,31]
[313373827,1707240643290,-500.01202679,0.00049315,31]
[313373828,1707240643299,-562.85413561,0.00049315,31]
[313373829,1707240643308,-517.2264743,0.00049315,31]
[313373830,1707240643317,-512.16562504,0.00049315,31]
[313373832,1707240643326,-635.30115386,0.00049315,31]
[313373834,1707240643336,-500.0,0.00049315,31]
[313373836,1707240643346,-576.99034353,0.00049315,31]
[313373838,1707240643355,-616.45565845,0.00049315,31]
[313373840,1707240643364,-150.16951359,0.00049315,31]
[313373842,1707240643374,-572.79112461,0.00049315,31]
[313373843,1707240643384,-568.0038209,0.00049315,31]
[313373844,1707240643394,-561.2737494,0.00049315,31]
[313373845,1707240643406,-504.04813963,0.00049315,31]
[313373846,1707240643416,-564.68948708,0.00049315,31]
[313373848,1707240643426,-597.63282828,0.00049315,31]
[313373849,1707240643439,-500.0,0.00049315,2]
[313373850,1707240643448,-540.58503652,0.00049315,31]
[313373851,1707240643458,-581.72111331,0.00049315,31]
[313373852,1707240643468,-500.0,0.00049315,5]
[313373853,1707240643477,-584.95658213,0.00049315,31]
[313373854,1707240643486,-500.0,0.00049315,31]
[313373855,1707240643495,-609.74918729,0.00049315,31]
[313373856,1707240643505,-618.65473558,0.00049315,31]
[313373857,1707240643514,-579.5827902,0.00049315,31]
[313373858,1707240643524,-600.13077898,0.00049315,31]
[313373859,1707240643533,-1046.64702153,0.00049315,30]
[313373860,1707240643542,-500.0,0.00049315,31]
[313373861,1707240643552,-542.21631583,0.00049315,31]
[313373862,1707240643561,-570.01652923,0.00049315,31]
[313373863,1707240643570,-607.8350999,0.00049315,31]
[313373864,1707240643580,-545.57075152,0.00049315,31]
[313373865,1707240643589,-604.92086398,0.00049315,31]
[313373866,1707240643598,-524.63963356,0.00049315,20]
[313373867,1707240643607,-502.23602342,0.00049315,31]
[313373868,1707240643616,-640.19578912,0.00049315,31]
[313373869,1707240643626,-500.0,0.00049315,31]
[313373870,1707240643635,-633.05766197,0.00049315,31]
[313373871,1707240643774,-500.0,0.00049315,31]
[313373872,1707240643783,-500.0,0.00049315,31]
[313373873,1707240643793,-281.47794493,0.00049315,31]
[313373874,1707240643803,-500.0,0.00049315,31]
[313373875,1707240643815,-611.37905072,0.00049315,31]
[313373876,1707240643824,-628.12650208,0.00049315,31]
[313373877,1707240643833,-500.0,0.00049315,31]
[313373878,1707240643842,-519.04906872,0.00049315,31]
[313373879,1707240643851,-500.0,0.00049315,31]
[313373880,1707240643861,-400.35406454,0.00049315,31]
[313373881,1707240643870,-589.32758266,0.00049315,31]
[313373882,1707240643879,-600.0,0.00049315,31]
[313373883,1707240643889,-500.0,0.00049315,31]
[313373884,1707240643898,-621.68938998,0.00049315,31]
[313373885,1707240643907,-520.45773862,0.00049315,31]
[313373886,1707240643916,-635.01111626,0.00049315,31]
[313373887,1707240643925,-508.02586476,0.00049315,31]
[313373888,1707240643936,-155.68481436,0.00049315,31]
[313373889,1707240643945,-527.05312858,0.00049315,31]
[313373890,1707240643954,-556.71389377,0.00049315,31]
[313373891,1707240643963,-500.0,0.00049315,31]
[313373892,1707240643972,-606.53073478,0.00049315,31]
[313373893,1707240643981,-184.7723065,0.00049315,31]
[313373894,1707240643990,-523.42720214,0.00049315,5]
[313373895,1707240644000,-610.8045126,0.00049315,31]
[313373896,1707240644010,-517.92498303,0.00049315,31]
[313373897,1707240644019,-500.0,0.00049315,31]
[313373898,1707240644028,-500.0,0.00049315,31]
[313373899,1707240644041,-556.83247683,0.00049315,31]
[313373900,1707240644052,-519.50530897,0.00049315,5]
[313373901,1707240644061,-156.05794514,0.00049315,31]
[313373902,1707240644071,-500.0,0.00049315,31]
[313373903,1707240644080,-500.0,0.00049315,31]
[313373904,1707240644089,-603.64002476,0.00049315,31]
[313373905,1707240644098,-539.57400509,0.00049315,31]
[313373906,1707240644108,-503.30046636,0.00049315,31]
[313373907,1707240644117,-500.0,0.00049315,2]
[313373908,1707240644126,-532.81949588,0.00049315,31]
[313373909,1707240644135,-500.0,0.00049315,31]
[313373910,1707240644145,-241.81906596,0.00049315,31]
[313373911,1707240644155,-606.31332774,0.00049315,31]
[313373912,1707240644164,-559.01213627,0.00049315,31]
[313373913,1707240644173,-545.04661331,0.00049315,31]
[313373914,1707240644184,-500.0,0.00049315,31]
[313373915,1707240644194,-284.61763872,0.00049315,31]
[313373916,1707240644203,-500.0,0.00049315,31]
[313373917,1707240644213,-509.06182189,0.00049315,31]
[313373918,1707240644222,-500.0,0.00049315,31]
[313373919,1707240644231,-500.0,0.00049315,31]
[313373920,1707240644241,-577.48420299,0.00049315,31]
[313373921,1707240644251,-500.0,0.00049315,31]
[313373922,1707240644261,-546.84525356,0.00049315,31]
[313373923,1707240644269,-500.0,0.00049315,31]
[313373924,1707240644279,-500.0,0.00049315,31]
[313373925,1707240644288,-500.0,0.00049315,31]
[313373926,1707240644298,-500.0,0.00049315,31]
[313373927,1707240644307,-500.0,0.00049315,31]
[313373928,1707240644317,-500.0,0.00049315,10]
[313373929,1707240644325,-500.0,0.00049315,31]
[313373930,1707240644335,-500.0,0.00049315,31]
[313373931,1707240644344,-500.0,0.00049315,31]
[313373932,1707240644352,-522.28058737,0.00049315,31]
[313373933,1707240644362,-500.0,0.00049315,31]
[313373934,1707240644371,-500.0,0.00049315,31]
[313373935,1707240644380,-500.0,0.00049315,31]
[313373936,1707240644390,-500.0,0.00049315,31]
[313373937,1707240644399,-500.0,0.00049315,31]
[313373938,1707240644408,-517.56119683,0.00049315,31]
[313373939,1707240644417,-645.71015715,0.00049315,31]
[313373940,1707240644427,-564.12982789,0.00049315,31]
[313373941,1707240644436,-500.0,0.00049315,31]
[313373942,1707240644446,-500.0,0.00049315,31]
[313373943,1707240644456,-468.58767893,0.00049315,31]
[313373944,1707240644466,-620.15319768,0.00049315,31]
[313373945,1707240644476,-580.89497131,0.00049315,31]
[313373946,1707240644486,-500.0,0.00049315,31]
[313373947,1707240644496,-615.36234319,0.00049315,31]
[313373948,1707240644506,-562.86046012,0.00049315,31]
[313373949,1707240644516,-500.0,0.00049315,31]
[313373950,1707240644525,-500.0,0.00049315,31]
[313373951,1707240644534,-590.2669458,0.00049315,31]
[313373952,1707240644543,-558.51052855,0.00049315,31]
[313373953,1707240644551,-500.0,0.00049315,31]
[313373954,1707240644561,-575.09505002,0.00049315,31]
[313373955,1707240644570,-510.77385179,0.00049315,31]
[313373956,1707240644580,-626.32344422,0.00049315,31]
[313373957,1707240644589,-509.75404445,0.00049315,31]
[313373958,1707240644598,-500.0,0.00049315,2]
[313373959,1707240644608,-500.0,0.00049315,2]
[313373960,1707240644618,-500.0,0.00049315,2]
[313373961,1707240644627,-520.07361334,0.00049315,31]
[313373962,1707240644636,-626.58535616,0.00049315,31]
[313373963,1707240644645,-574.45781413,0.00049315,31]
[313373964,1707240644655,-604.75691885,0.00049315,31]
[313373965,1707240644663,-500.0,0.00049315,31]
[313373966,1707240644674,-593.16307014,0.00049315,31]
[313373967,1707240644685,-590.21437288,0.00049315,31]
[313373968,1707240644694,-554.46711621,0.00049315,31]
[313373969,1707240644707,-500.0,0.00049315,3]
[313373970,1707240644716,-500.0,0.00049315,31]
[313373971,1707240644726,-560.66421962,0.00049315,31]
[313373972,1707240644735,-621.15399263,0.00049315,31]
[313373973,1707240644745,-500.0,0.00049315,31]
[313373974,1707240644754,-500.0,0.00049315,31]
[313373975,1707240644764,-500.0,0.00049315,31]
[313373976,1707240644774,-500.0,0.00049315,31]
[313373977,1707240644783,-593.49,0.00049315,7]
[313373978,1707240644793,-500.0,0.00049315,31]
[313373979,1707240644803,-500.0,0.00049315,31]
[313373980,1707240644817,-627.359303,0.00049315,31]
[313373981,1707240644827,-500.0,0.00049315,31]
[313373982,1707240644837,-567.1439542,0.00049315,31]
[313373983,1707240644846,-278.16566968,0.00049315,31]
[313373984,1707240644857,-566.462474,0.00049315,31]
[313373985,1707240644867,-640.07607557,0.00049315,31]
[313373986,1707240644876,-551.37990458,0.00049315,31]
[313373987,1707240644886,-586.24101866,0.00049315,31]
[313373988,1707240644896,-555.93872639,0.00049315,31]
[313373989,1707240644907,-577.43482168,0.00049315,31]
[313373990,1707240644916,-583.56500707,0.00049315,31]
[313373991,1707240644926,-500.0,0.00049315,31]
[313373992,1707240644937,-500.0,0.00049315,31]
[313373993,1707240644947,-500.0,0.00049315,31]
[313373994,1707240644957,-500.0,0.00049315,31]
[313373995,1707240644967,-575.38603167,0.00049315,31]
[313373996,1707240644977,-608.58229697,0.00049315,31]
[313373997,1707240644988,-399.9130098,0.00049315,31]
[313373998,1707240644998,-500.0,0.00049315,31]
[313373999,1707240645008,-500.0,0.00049315,31]
[313374000,1707240645018,-500.0,0.00049315,31]
[313374001,1707240645028,-500.0,0.00049315,31]
[313374002,1707240645037,-531.70964969,0.00049315,31]
[313374003,1707240645047,-500.0,0.00049315,31]
[313374004,1707240645057,-538.76203304,0.00049315,31]
[313374005,1707240645066,-182.23878083,0.00049315,31]
[313374006,1707240645077,-615.62737314,0.00049315,31]
[313374007,1707240645088,-544.2964018,0.00049315,31]
[313374008,1707240645097,-649.07778995,0.00049315,14]
[313374009,1707240645107,-540.75810542,0.00049315,31]
[313374010,1707240645117,-599.84827871,0.00049315,31]
[313374011,1707240645127,-500.0,0.00049315,31]
[313374012,1707240645136,-508.55711188,0.00049315,31]
[313374013,1707240645146,-500.0,0.00049315,31]
[313374014,1707240645156,-563.88473017,0.00049315,31]
[313374015,1707240645167,-500.0,0.00049315,31]
[313374016,1707240645176,-500.0,0.00049315,31]
[313374017,1707240645187,-505.8159693,0.00049315,31]
[313374018,1707240645196,-500.0,0.00049315,31]
[313374019,1707240645206,-563.55491712,0.00049315,31]
[313374020,1707240645215,-526.27551233,0.00049315,31]
[313374021,1707240645225,-607.05611661,0.00049315,31]
[313374022,1707240645234,-500.0,0.00049315,31]